[Event "Early-Titled-Tuesday-Blitz-September-05-2023"]
[Site "Chess.com"]
[Date "2023.09.05"]
[Round "3"]
[White "MKlose11"]
[Black "Logman74"]
[Result "0-1"]
[WhiteElo "2645"]
[BlackElo "2484"]
[TimeControl "180+1"]
[EndTime "8:27:29 PDT"]
[Termination "Logman74 won on time"]

1. e4 {[%clk 0:02:42.7]} 1... c5 {[%clk 0:02:38.5]} 2. Nc3 {[%clk 0:02:42.3]}
2... Nc6 {[%clk 0:02:37.7]} 3. g3 {[%clk 0:02:43.2]} 3... g6 {[%clk 0:02:37.5]}
4. Bg2 {[%clk 0:02:44.1]} 4... Bg7 {[%clk 0:02:38]} 5. d3 {[%clk 0:02:44.9]}
5... d6 {[%clk 0:02:38.2]} 6. Be3 {[%clk 0:02:44.6]} 6... Qa5 {[%clk 0:02:34.1]}
7. Qd2 {[%clk 0:02:44.1]} 7... b5 {[%clk 0:02:34.3]} 8. Nge2 {[%clk 0:02:41.6]}
8... Rb8 {[%clk 0:02:33.1]} 9. O-O {[%clk 0:02:41.1]} 9... Nd4 {[%clk
0:02:33.7]} 10. f4 {[%clk 0:02:34.7]} 10... Bg4 {[%clk 0:02:30.6]} 11. Nc1
{[%clk 0:02:26.5]} 11... Nf6 {[%clk 0:02:18.5]} 12. Nb3 {[%clk 0:02:22.6]} 12...
Nxb3 {[%clk 0:02:16.1]} 13. axb3 {[%clk 0:02:23.5]} 13... Qc7 {[%clk 0:02:13.9]}
14. Ra6 {[%clk 0:02:18.8]} 14... Bc8 {[%clk 0:02:12.1]} 15. Ra2 {[%clk
0:02:11.9]} 15... O-O {[%clk 0:02:11.3]} 16. b4 {[%clk 0:02:07.8]} 16... Be6
{[%clk 0:02:03.6]} 17. Ra6 {[%clk 0:01:52.7]} 17... cxb4 {[%clk 0:02:03]} 18.
Rxa7 {[%clk 0:01:51.6]} 18... bxc3 {[%clk 0:02:02.5]} 19. Rxc7 {[%clk
0:01:26.2]} 19... cxd2 {[%clk 0:02:01.3]} 20. Rxe7 {[%clk 0:01:18.1]} 20... Rfe8
{[%clk 0:01:56.2]} 21. Rxe8+ {[%clk 0:01:15.2]} 21... Rxe8 {[%clk 0:01:53]} 22.
Bxd2 {[%clk 0:01:16.1]} 22... Ng4 {[%clk 0:01:45]} 23. c3 {[%clk 0:00:53.1]}
23... f5 {[%clk 0:01:42.9]} 24. Ra1 {[%clk 0:00:48.8]} 24... Nf6 {[%clk
0:01:37.7]} 25. Ra6 {[%clk 0:00:41.9]} 25... Bf8 {[%clk 0:01:32.3]} 26. Rb6
{[%clk 0:00:41.1]} 26... d5 {[%clk 0:01:31.6]} 27. Rxb5 {[%clk 0:00:26.8]} 27...
dxe4 {[%clk 0:01:30.9]} 28. dxe4 {[%clk 0:00:27.7]} 28... Nxe4 {[%clk
0:01:30.9]} 29. Be3 {[%clk 0:00:22.4]} 29... Bc4 {[%clk 0:01:28.5]} 30. Rb7
{[%clk 0:00:20.1]} 30... Bc5 {[%clk 0:01:24.4]} 31. Bxc5 {[%clk 0:00:17.2]}
31... Nxc5 {[%clk 0:01:25]} 32. Rc7 {[%clk 0:00:17.8]} 32... Re1+ {[%clk
0:01:19.1]} 33. Bf1 {[%clk 0:00:11.5]} 33... Rxf1+ {[%clk 0:01:11.5]} 34. Kg2
{[%clk 0:00:11.9]} 34... Rb1 {[%clk 0:01:11.8]} 35. Rxc5 {[%clk 0:00:11.6]}
35... Rxb2+ {[%clk 0:01:09.8]} 36. Kh3 {[%clk 0:00:12.1]} 36... Bf1+ {[%clk
0:01:08.8]} 37. Kh4 {[%clk 0:00:12]} 37... Rxh2+ {[%clk 0:01:06.1]} 38. Kg5
{[%clk 0:00:11.9]} 38... Re2 {[%clk 0:01:01.8]} 39. Rc7 {[%clk 0:00:05.8]} 39...
Re6 {[%clk 0:00:55.7]} 40. Kh6 {[%clk 0:00:05.3]} 40... Be2 {[%clk 0:00:51.1]}
41. c4 {[%clk 0:00:05.1]} 41... Kf8 {[%clk 0:00:49.7]} 42. Kxh7 {[%clk
0:00:02.7]} 42... Re7+ {[%clk 0:00:47.7]} 0-1

[Event "Early-Titled-Tuesday-Blitz-September-05-2023"]
[Site "Chess.com"]
[Date "2023.09.05"]
[Round "3"]
[White "gau248"]
[Black "emirgulbeyaz"]
[Result "1-0"]
[WhiteElo "2561"]
[BlackElo "2293"]
[TimeControl "180+1"]
[EndTime "8:27:31 PDT"]
[Termination "gau248 won by resignation"]

1. d4 {[%clk 0:02:33.5]} 1... g6 {[%clk 0:02:55.5]} 2. Nf3 {[%clk 0:02:32.6]}
2... Bg7 {[%clk 0:02:52.9]} 3. e4 {[%clk 0:02:32.7]} 3... d6 {[%clk 0:02:53.3]}
4. Bc4 {[%clk 0:02:29.9]} 4... Nf6 {[%clk 0:02:53.8]} 5. Nc3 {[%clk 0:02:29.6]}
5... O-O {[%clk 0:02:53.6]} 6. O-O {[%clk 0:02:29.2]} 6... Nc6 {[%clk
0:02:53.5]} 7. Re1 {[%clk 0:02:27.6]} 7... Bg4 {[%clk 0:02:53.1]} 8. Be3 {[%clk
0:02:23.4]} 8... e5 {[%clk 0:02:52.5]} 9. d5 {[%clk 0:02:17.9]} 9... Bxf3 {[%clk
0:02:52.8]} 10. Qxf3 {[%clk 0:02:15.5]} 10... Nd4 {[%clk 0:02:53.4]} 11. Qd1
{[%clk 0:02:14]} 11... c6 {[%clk 0:02:49]} 12. dxc6 {[%clk 0:02:13.8]} 12...
bxc6 {[%clk 0:02:49.9]} 13. Bxd4 {[%clk 0:02:06.1]} 13... exd4 {[%clk
0:02:50.8]} 14. Qxd4 {[%clk 0:02:06.1]} 14... Ng4 {[%clk 0:02:51.4]} 15. Qd2
{[%clk 0:02:04.1]} 15... Rb8 {[%clk 0:02:41.8]} 16. b3 {[%clk 0:01:56.3]} 16...
Qh4 {[%clk 0:02:37.6]} 17. h3 {[%clk 0:01:38.4]} 17... Nxf2 {[%clk 0:02:32.3]}
18. Re3 {[%clk 0:01:33.2]} 18... d5 {[%clk 0:02:21.7]} 19. exd5 {[%clk
0:01:28.5]} 19... cxd5 {[%clk 0:02:22.6]} 20. Bxd5 {[%clk 0:01:20.2]} 20... Bd4
{[%clk 0:00:55.9]} 21. Qxf2 {[%clk 0:01:15.1]} 21... Qg5 {[%clk 0:00:56.1]} 22.
Rae1 {[%clk 0:00:57.5]} 22... Rbe8 {[%clk 0:00:56.7]} 23. Bxf7+ {[%clk
0:00:52.5]} 23... Kg7 {[%clk 0:00:56.8]} 24. Bxe8 {[%clk 0:00:43.4]} 24... Rxf2
{[%clk 0:00:55.8]} 25. Kxf2 {[%clk 0:00:18.6]} 25... Qf4+ {[%clk 0:00:52.9]} 26.
Kg1 {[%clk 0:00:18.9]} 26... Bxe3+ {[%clk 0:00:51.1]} 27. Kh1 {[%clk 0:00:19.3]}
27... Bd2 {[%clk 0:00:47.3]} 28. Re7+ {[%clk 0:00:15.4]} 28... Kh6 {[%clk
0:00:43.5]} 29. Nd5 {[%clk 0:00:14.5]} 29... Qf1+ {[%clk 0:00:33.8]} 30. Kh2
{[%clk 0:00:14.3]} 30... Qf2 {[%clk 0:00:19.2]} 31. Re4 {[%clk 0:00:13.1]} 31...
Be1 {[%clk 0:00:17]} 32. Ne3 {[%clk 0:00:12.4]} 32... Qf3 {[%clk 0:00:15.8]} 33.
gxf3 {[%clk 0:00:11.3]} 1-0

[Event "Early-Titled-Tuesday-Blitz-September-05-2023"]
[Site "Chess.com"]
[Date "2023.09.05"]
[Round "3"]
[White "Obito24"]
[Black "LuisFSiles"]
[Result "1-0"]
[WhiteElo "2686"]
[BlackElo "2357"]
[TimeControl "180+1"]
[EndTime "8:27:32 PDT"]
[Termination "Obito24 won on time"]

1. d4 {[%clk 0:02:52.7]} 1... Nf6 {[%clk 0:02:57.6]} 2. c4 {[%clk 0:02:52]} 2...
g6 {[%clk 0:02:57.7]} 3. Nc3 {[%clk 0:02:51.4]} 3... d5 {[%clk 0:02:55.7]} 4.
Nf3 {[%clk 0:02:49.7]} 4... Bg7 {[%clk 0:02:55.1]} 5. Bg5 {[%clk 0:02:49.9]}
5... Ne4 {[%clk 0:02:49.5]} 6. cxd5 {[%clk 0:02:50.3]} 6... Nxc3 {[%clk
0:02:38.4]} 7. bxc3 {[%clk 0:02:49.1]} 7... Qxd5 {[%clk 0:02:38.9]} 8. Qb3
{[%clk 0:02:44.5]} 8... Qa5 {[%clk 0:02:26.9]} 9. e3 {[%clk 0:02:18.7]} 9... Bg4
{[%clk 0:02:12.8]} 10. Qb5+ {[%clk 0:02:01.8]} 10... Nc6 {[%clk 0:02:05.9]} 11.
Qxa5 {[%clk 0:01:54.6]} 11... Nxa5 {[%clk 0:02:06]} 12. Bb5+ {[%clk 0:01:54.6]}
12... c6 {[%clk 0:02:05]} 13. Be2 {[%clk 0:01:54.1]} 13... h6 {[%clk 0:01:38.1]}
14. Bh4 {[%clk 0:01:51.7]} 14... g5 {[%clk 0:01:37]} 15. Bg3 {[%clk 0:01:51.7]}
15... O-O {[%clk 0:01:35]} 16. h4 {[%clk 0:01:49.1]} 16... Bf6 {[%clk
0:01:29.7]} 17. e4 {[%clk 0:01:31.6]} 17... e6 {[%clk 0:01:17.7]} 18. Ne5 {[%clk
0:01:04.3]} 18... Bxe2 {[%clk 0:00:44.4]} 19. Kxe2 {[%clk 0:01:05.2]} 19... Kg7
{[%clk 0:00:31.3]} 20. Nd7 {[%clk 0:00:50.4]} 20... Rfe8 {[%clk 0:00:20.5]} 21.
hxg5 {[%clk 0:00:32.7]} 21... Bxg5 {[%clk 0:00:19.9]} 22. f4 {[%clk 0:00:18.7]}
22... Be7 {[%clk 0:00:19]} 23. Rab1 {[%clk 0:00:13.6]} 23... b6 {[%clk
0:00:18.4]} 24. Bh4 {[%clk 0:00:13.9]} 24... Bxh4 {[%clk 0:00:17.4]} 25. Rxh4
{[%clk 0:00:13.4]} 25... Rad8 {[%clk 0:00:17.4]} 26. Ne5 {[%clk 0:00:12.3]}
26... c5 {[%clk 0:00:17.7]} 27. Ke3 {[%clk 0:00:09.2]} 27... f6 {[%clk
0:00:16.1]} 28. Rg4+ {[%clk 0:00:08.7]} 28... Kh7 {[%clk 0:00:16.1]} 29. Nf7
{[%clk 0:00:07.7]} 29... cxd4+ {[%clk 0:00:14.8]} 30. cxd4 {[%clk 0:00:07.5]}
30... Rc8 {[%clk 0:00:14.3]} 31. Rh1 {[%clk 0:00:04]} 31... Nc4+ {[%clk
0:00:08.2]} 32. Ke2 {[%clk 0:00:04.1]} 1-0

[Event "Early-Titled-Tuesday-Blitz-September-05-2023"]
[Site "Chess.com"]
[Date "2023.09.05"]
[Round "3"]
[White "Genghis_K"]
[Black "Casablanca"]
[Result "0-1"]
[WhiteElo "2860"]
[BlackElo "2710"]
[TimeControl "180+1"]
[EndTime "8:27:33 PDT"]
[Termination "Casablanca won on time"]

1. d4 {[%clk 0:02:56.9]} 1... Nf6 {[%clk 0:02:59.9]} 2. c4 {[%clk 0:02:56.3]}
2... g6 {[%clk 0:02:59.5]} 3. Nc3 {[%clk 0:02:53.5]} 3... Bg7 {[%clk 0:02:59.2]}
4. e4 {[%clk 0:02:54]} 4... O-O {[%clk 0:02:59.7]} 5. Nf3 {[%clk 0:02:52.5]}
5... d6 {[%clk 0:02:59.9]} 6. Bd3 {[%clk 0:02:53]} 6... c5 {[%clk 0:02:46]} 7.
d5 {[%clk 0:02:46.5]} 7... e6 {[%clk 0:02:46.1]} 8. h3 {[%clk 0:02:46.5]} 8...
exd5 {[%clk 0:02:46]} 9. exd5 {[%clk 0:02:46.7]} 9... Re8+ {[%clk 0:02:45.9]}
10. Be3 {[%clk 0:02:47.3]} 10... Nbd7 {[%clk 0:02:37.5]} 11. O-O {[%clk
0:02:45.5]} 11... a6 {[%clk 0:02:30.1]} 12. Bf4 {[%clk 0:02:30.1]} 12... Qc7
{[%clk 0:02:30.1]} 13. a4 {[%clk 0:02:28.8]} 13... Nh5 {[%clk 0:02:29.9]} 14.
Bh2 {[%clk 0:02:27.6]} 14... Ne5 {[%clk 0:02:30.3]} 15. Nxe5 {[%clk 0:02:25.7]}
15... Bxe5 {[%clk 0:02:31.2]} 16. f4 {[%clk 0:02:24.2]} 16... Bd4+ {[%clk
0:02:31.2]} 17. Kh1 {[%clk 0:02:24.6]} 17... Qd8 {[%clk 0:02:17.2]} 18. g4
{[%clk 0:02:14.1]} 18... Ng7 {[%clk 0:01:33.2]} 19. f5 {[%clk 0:01:53.6]} 19...
Qh4 {[%clk 0:01:33]} 20. Rf3 {[%clk 0:01:36.3]} 20... gxf5 {[%clk 0:00:57.4]}
21. gxf5 {[%clk 0:01:24.8]} 21... Nh5 {[%clk 0:00:35.4]} 22. Ne2 {[%clk
0:01:00.4]} 22... Bxb2 {[%clk 0:00:28.3]} 23. Qg1+ {[%clk 0:00:57.3]} 23... Kh8
{[%clk 0:00:23.2]} 24. Bxd6 {[%clk 0:00:57]} 24... Rg8 {[%clk 0:00:23.3]} 25.
Qb1 {[%clk 0:00:53.9]} 25... Bxa1 {[%clk 0:00:19.2]} 26. Qxa1+ {[%clk
0:00:54.2]} 26... f6 {[%clk 0:00:19.7]} 27. Nf4 {[%clk 0:00:41.1]} 27... Nxf4
{[%clk 0:00:18.6]} 28. Bxf4 {[%clk 0:00:40.9]} 28... Bd7 {[%clk 0:00:16.4]} 29.
Bf1 {[%clk 0:00:39.2]} 29... Rae8 {[%clk 0:00:15.8]} 30. Qb2 {[%clk 0:00:35.7]}
30... Re4 {[%clk 0:00:16]} 31. Bh2 {[%clk 0:00:33.3]} 31... b5 {[%clk
0:00:10.7]} 32. cxb5 {[%clk 0:00:31.9]} 32... axb5 {[%clk 0:00:11.6]} 33. axb5
{[%clk 0:00:32.6]} 33... Re1 {[%clk 0:00:10.2]} 34. Qc3 {[%clk 0:00:12.3]} 34...
Bxf5 {[%clk 0:00:08.7]} 35. Rxf5 {[%clk 0:00:06.4]} 35... Qe4+ {[%clk
0:00:08.7]} 0-1

[Event "Early-Titled-Tuesday-Blitz-September-05-2023"]
[Site "Chess.com"]
[Date "2023.09.05"]
[Round "3"]
[White "Doudou2015"]
[Black "Tonychess32"]
[Result "0-1"]
[WhiteElo "2169"]
[BlackElo "2420"]
[TimeControl "180+1"]
[EndTime "8:27:35 PDT"]
[Termination "Tonychess32 won by resignation"]

1. b3 {[%clk 0:03:00.3]} 1... b6 {[%clk 0:03:00.1]} 2. Bb2 {[%clk 0:03:01.2]}
2... Bb7 {[%clk 0:03:00.4]} 3. e3 {[%clk 0:03:01.6]} 3... Nf6 {[%clk 0:03:00.3]}
4. f4 {[%clk 0:03:02]} 4... g6 {[%clk 0:02:59.2]} 5. Bxf6 {[%clk 0:03:01.2]}
5... exf6 {[%clk 0:02:59.1]} 6. Nf3 {[%clk 0:03:01.4]} 6... Bg7 {[%clk
0:02:59.4]} 7. c4 {[%clk 0:03:01.7]} 7... f5 {[%clk 0:02:59.6]} 8. Nc3 {[%clk
0:03:01.9]} 8... O-O {[%clk 0:02:59.1]} 9. Be2 {[%clk 0:03:00]} 9... c6 {[%clk
0:02:53]} 10. O-O {[%clk 0:02:54.2]} 10... Na6 {[%clk 0:02:52.7]} 11. a3 {[%clk
0:02:48.7]} 11... d5 {[%clk 0:02:49.6]} 12. cxd5 {[%clk 0:02:49.6]} 12... cxd5
{[%clk 0:02:46.7]} 13. d4 {[%clk 0:02:43.4]} 13... Re8 {[%clk 0:02:43.7]} 14.
Qd2 {[%clk 0:02:42.4]} 14... Qe7 {[%clk 0:02:23]} 15. Nd1 {[%clk 0:02:40.3]}
15... Rac8 {[%clk 0:02:18.1]} 16. Re1 {[%clk 0:02:38.2]} 16... Nc5 {[%clk
0:02:08.6]} 17. Rc1 {[%clk 0:02:14.5]} 17... Ne4 {[%clk 0:02:06.8]} 18. Qb2
{[%clk 0:02:10.6]} 18... Rxc1 {[%clk 0:01:55.9]} 19. Qxc1 {[%clk 0:02:08.2]}
19... Rc8 {[%clk 0:01:53.9]} 20. Qb2 {[%clk 0:02:01.1]} 20... Qc7 {[%clk
0:01:48.8]} 21. Bd3 {[%clk 0:01:49]} 21... Nf6 {[%clk 0:01:46.7]} 22. Ne5 {[%clk
0:01:45.7]} 22... Bf8 {[%clk 0:01:46.5]} 23. Nf2 {[%clk 0:01:34.9]} 23... Bd6
{[%clk 0:01:38.3]} 24. h3 {[%clk 0:01:15.9]} 24... Qe7 {[%clk 0:01:37.9]} 25. b4
{[%clk 0:01:15]} 25... Qc7 {[%clk 0:01:38]} 26. Kh2 {[%clk 0:01:11.7]} 26... Qc3
{[%clk 0:01:31.9]} 27. Re2 {[%clk 0:01:05.6]} 27... Qxb2 {[%clk 0:01:26.8]} 28.
Rxb2 {[%clk 0:01:06.5]} 28... Rc3 {[%clk 0:01:27]} 29. a4 {[%clk 0:01:01.2]}
29... Ne4 {[%clk 0:01:17]} 30. Bxe4 {[%clk 0:00:49.2]} 30... fxe4 {[%clk
0:01:17.3]} 31. a5 {[%clk 0:00:41.3]} 31... Rxe3 {[%clk 0:00:56.5]} 32. axb6
{[%clk 0:00:40.8]} 32... axb6 {[%clk 0:00:57.4]} 33. Nd7 {[%clk 0:00:40.2]}
33... Bxf4+ {[%clk 0:00:56.9]} 34. g3 {[%clk 0:00:35.9]} 34... Rxg3 {[%clk
0:00:55.2]} 35. Kh1 {[%clk 0:00:34.1]} 35... e3 {[%clk 0:00:49]} 36. Nd3 {[%clk
0:00:33.5]} 36... Rxh3+ {[%clk 0:00:47]} 37. Kg1 {[%clk 0:00:32.4]} 37... Bc7
{[%clk 0:00:31.7]} 38. Rc2 {[%clk 0:00:27.6]} 38... Bd8 {[%clk 0:00:31.9]} 39.
Nf4 {[%clk 0:00:20.7]} 39... Rf3 {[%clk 0:00:30.4]} 40. Nd3 {[%clk 0:00:17]}
40... Ba6 {[%clk 0:00:30.4]} 41. N3e5 {[%clk 0:00:17]} 41... Rf1+ {[%clk
0:00:30]} 42. Kg2 {[%clk 0:00:17]} 42... Rd1 {[%clk 0:00:29.1]} 43. Ra2 {[%clk
0:00:13.7]} 43... Rd2+ {[%clk 0:00:28.8]} 44. Rxd2 {[%clk 0:00:13.4]} 44... exd2
{[%clk 0:00:29.7]} 0-1

[Event "Early-Titled-Tuesday-Blitz-September-05-2023"]
[Site "Chess.com"]
[Date "2023.09.05"]
[Round "3"]
[White "suyu28"]
[Black "MarijaKuznecova"]
[Result "0-1"]
[WhiteElo "2723"]
[BlackElo "2388"]
[TimeControl "180+1"]
[EndTime "8:27:39 PDT"]
[Termination "MarijaKuznecova won on time"]

1. d4 {[%clk 0:03:00.9]} 1... Nf6 {[%clk 0:02:59.7]} 2. c4 {[%clk 0:02:58.2]}
2... c5 {[%clk 0:02:59.4]} 3. d5 {[%clk 0:02:58.1]} 3... b5 {[%clk 0:02:59.1]}
4. cxb5 {[%clk 0:02:57.6]} 4... a6 {[%clk 0:02:59.1]} 5. bxa6 {[%clk 0:02:57.4]}
5... g6 {[%clk 0:02:59.2]} 6. Nc3 {[%clk 0:02:57.1]} 6... Bg7 {[%clk 0:02:59.4]}
7. e4 {[%clk 0:02:57.4]} 7... d6 {[%clk 0:02:59]} 8. h3 {[%clk 0:02:55]} 8...
O-O {[%clk 0:02:58.6]} 9. Nf3 {[%clk 0:02:55.3]} 9... Qa5 {[%clk 0:02:58.1]} 10.
Bd2 {[%clk 0:02:53.6]} 10... Bxa6 {[%clk 0:02:57.2]} 11. Bxa6 {[%clk 0:02:53.3]}
11... Qxa6 {[%clk 0:02:58.1]} 12. Qe2 {[%clk 0:02:53.3]} 12... Nbd7 {[%clk
0:02:56.8]} 13. Qxa6 {[%clk 0:02:52.3]} 13... Rxa6 {[%clk 0:02:57.7]} 14. Kd1
{[%clk 0:02:47.4]} 14... Rb8 {[%clk 0:02:55.8]} 15. Kc2 {[%clk 0:02:47.5]} 15...
c4 {[%clk 0:02:16.5]} 16. Rab1 {[%clk 0:01:57.2]} 16... Nc5 {[%clk 0:02:06]} 17.
Rhe1 {[%clk 0:01:53.4]} 17... Nd3 {[%clk 0:02:01.3]} 18. Re2 {[%clk 0:01:53.8]}
18... Nb4+ {[%clk 0:01:59.8]} 19. Kc1 {[%clk 0:01:49.1]} 19... Nd7 {[%clk
0:01:38.4]} 20. a3 {[%clk 0:01:40.3]} 20... Nd3+ {[%clk 0:01:36.4]} 21. Kc2
{[%clk 0:01:40.9]} 21... N7c5 {[%clk 0:01:12.4]} 22. Bc1 {[%clk 0:01:02.3]}
22... Rab6 {[%clk 0:01:04.8]} 23. Nd2 {[%clk 0:00:57.2]} 23... Nxc1 {[%clk
0:00:53.7]} 24. Rxc1 {[%clk 0:00:36.9]} 24... Nd3 {[%clk 0:00:53.8]} 25. Kd1
{[%clk 0:00:37.8]} 25... Nxc1 {[%clk 0:00:52.6]} 26. Kxc1 {[%clk 0:00:34.5]}
26... Rxb2 {[%clk 0:00:51.9]} 27. Nxc4 {[%clk 0:00:34.8]} 27... R2b3 {[%clk
0:00:39.6]} 28. Nd1 {[%clk 0:00:19.8]} 28... Rb1+ {[%clk 0:00:29.4]} 29. Kc2
{[%clk 0:00:17.7]} 29... Ra1 {[%clk 0:00:22.8]} 30. Ndb2 {[%clk 0:00:13.4]}
30... Rc8 {[%clk 0:00:19.1]} 31. Kb3 {[%clk 0:00:10.9]} 31... Rb1 {[%clk
0:00:18]} 32. Ka2 {[%clk 0:00:07.5]} 32... Rc1 {[%clk 0:00:16.7]} 33. Ne3 {[%clk
0:00:05.5]} 33... Ra8 {[%clk 0:00:12.3]} 34. Nbc4 {[%clk 0:00:05.3]} 34... Rc3
{[%clk 0:00:11.3]} 0-1

[Event "Early-Titled-Tuesday-Blitz-September-05-2023"]
[Site "Chess.com"]
[Date "2023.09.05"]
[Round "3"]
[White "Hope_6"]
[Black "Lady_Nika"]
[Result "1/2-1/2"]
[WhiteElo "2698"]
[BlackElo "2490"]
[TimeControl "180+1"]
[EndTime "8:27:41 PDT"]
[Termination "Game drawn by repetition"]

1. d4 {[%clk 0:03:00]} 1... d5 {[%clk 0:03:00.1]} 2. c4 {[%clk 0:02:59.5]} 2...
e6 {[%clk 0:03:00]} 3. Bf4 {[%clk 0:02:59]} 3... Bd6 {[%clk 0:03:00]} 4. Bxd6
{[%clk 0:02:56.7]} 4... Qxd6 {[%clk 0:02:59.9]} 5. cxd5 {[%clk 0:02:57.1]} 5...
exd5 {[%clk 0:03:00]} 6. e3 {[%clk 0:02:57.7]} 6... Nf6 {[%clk 0:03:00.1]} 7.
Bd3 {[%clk 0:02:57.9]} 7... O-O {[%clk 0:02:58.9]} 8. Nc3 {[%clk 0:02:56.5]}
8... c6 {[%clk 0:02:59.1]} 9. h3 {[%clk 0:02:56.3]} 9... Re8 {[%clk 0:02:59.4]}
10. Nf3 {[%clk 0:02:54.4]} 10... Nbd7 {[%clk 0:02:59.5]} 11. O-O {[%clk
0:02:54.2]} 11... Ne4 {[%clk 0:02:59.3]} 12. Qc2 {[%clk 0:02:53.1]} 12... f5
{[%clk 0:02:58.5]} 13. Rab1 {[%clk 0:02:52.7]} 13... a6 {[%clk 0:02:58]} 14.
Rfc1 {[%clk 0:02:45.5]} 14... Qh6 {[%clk 0:02:57.8]} 15. a4 {[%clk 0:02:36.6]}
15... g5 {[%clk 0:02:57.6]} 16. Nd2 {[%clk 0:02:25.8]} 16... Ndf6 {[%clk
0:02:56.3]} 17. b4 {[%clk 0:02:22.8]} 17... g4 {[%clk 0:02:56.3]} 18. Bxe4
{[%clk 0:02:06.5]} 18... fxe4 {[%clk 0:02:55.2]} 19. h4 {[%clk 0:02:03.5]} 19...
Qxh4 {[%clk 0:02:54.4]} 20. Ne2 {[%clk 0:02:00.2]} 20... Nh5 {[%clk 0:02:52.7]}
21. g3 {[%clk 0:01:56.2]} 21... Qh3 {[%clk 0:02:47.4]} 22. Qd1 {[%clk
0:01:51.6]} 22... Ng7 {[%clk 0:02:44]} 23. b5 {[%clk 0:01:47.3]} 23... axb5
{[%clk 0:02:44]} 24. axb5 {[%clk 0:01:47.5]} 24... Bd7 {[%clk 0:02:44.2]} 25.
bxc6 {[%clk 0:01:46.2]} 25... Bxc6 {[%clk 0:02:44.4]} 26. Nf4 {[%clk 0:01:44.4]}
26... Qh6 {[%clk 0:02:41.5]} 27. Qxg4 {[%clk 0:01:44.4]} 27... Ra2 {[%clk
0:02:41]} 28. Nb3 {[%clk 0:01:32]} 28... Kh8 {[%clk 0:02:38.1]} 29. Nc5 {[%clk
0:01:26.2]} 29... b5 {[%clk 0:02:30.5]} 30. Nce6 {[%clk 0:01:19.1]} 30... Nxe6
{[%clk 0:02:00.5]} 31. Rxc6 {[%clk 0:01:18.5]} 31... Rxf2 {[%clk 0:01:55.4]} 32.
Kxf2 {[%clk 0:01:00.1]} 32... Qh2+ {[%clk 0:01:54.6]} 33. Ke1 {[%clk 0:00:59.7]}
33... Qh1+ {[%clk 0:01:42.2]} 34. Kd2 {[%clk 0:00:59.7]} 34... Qxb1 {[%clk
0:01:41.7]} 35. Nxe6 {[%clk 0:00:38.2]} 35... Rg8 {[%clk 0:01:30.1]} 36. Rc8
{[%clk 0:00:33.5]} 36... Qd3+ {[%clk 0:01:08.4]} 37. Kc1 {[%clk 0:00:32.8]}
37... Qxe3+ {[%clk 0:01:07.6]} 38. Kb2 {[%clk 0:00:27.6]} 38... Qd2+ {[%clk
0:01:07.4]} 39. Kb3 {[%clk 0:00:25.4]} 39... Qd3+ {[%clk 0:01:05.6]} 40. Kb4
{[%clk 0:00:16.1]} 40... Qd2+ {[%clk 0:01:01.4]} 41. Kb3 {[%clk 0:00:14.8]}
41... Qd3+ {[%clk 0:00:51.3]} 42. Kb2 {[%clk 0:00:15.4]} 42... Qd2+ {[%clk
0:00:49]} 43. Kb1 {[%clk 0:00:15.3]} 43... Qb4+ {[%clk 0:00:46.1]} 44. Ka2
{[%clk 0:00:14.6]} 44... Qa4+ {[%clk 0:00:45.7]} 45. Kb2 {[%clk 0:00:14.8]}
45... Qb4+ {[%clk 0:00:46.1]} 46. Ka2 {[%clk 0:00:15.2]} 46... Qa4+ {[%clk
0:00:45.2]} 47. Kb2 {[%clk 0:00:14.8]} 47... Qb4+ {[%clk 0:00:45.3]} 48. Ka2
{[%clk 0:00:15.2]} 1/2-1/2

[Event "Early-Titled-Tuesday-Blitz-September-05-2023"]
[Site "Chess.com"]
[Date "2023.09.05"]
[Round "3"]
[White "Gogolev_Artemy"]
[Black "blitzo_vich"]
[Result "0-1"]
[WhiteElo "2435"]
[BlackElo "2614"]
[TimeControl "180+1"]
[EndTime "8:27:41 PDT"]
[Termination "blitzo_vich won on time"]

1. Nf3 {[%clk 0:02:54.5]} 1... d5 {[%clk 0:02:57]} 2. c4 {[%clk 0:02:53.4]} 2...
c6 {[%clk 0:02:53.8]} 3. g3 {[%clk 0:02:53]} 3... Bg4 {[%clk 0:02:51.5]} 4. Bg2
{[%clk 0:02:51.2]} 4... Nd7 {[%clk 0:02:50.5]} 5. cxd5 {[%clk 0:02:48.4]} 5...
cxd5 {[%clk 0:02:49.6]} 6. Nc3 {[%clk 0:02:48.3]} 6... e6 {[%clk 0:02:48.7]} 7.
O-O {[%clk 0:02:46.3]} 7... Ngf6 {[%clk 0:02:46.5]} 8. d3 {[%clk 0:02:43.9]}
8... Be7 {[%clk 0:02:43.5]} 9. Qb3 {[%clk 0:02:39.1]} 9... O-O {[%clk
0:02:41.1]} 10. Be3 {[%clk 0:02:36.4]} 10... a6 {[%clk 0:02:31.8]} 11. Qxb7
{[%clk 0:02:11.8]} 11... Bxf3 {[%clk 0:02:19]} 12. Bxf3 {[%clk 0:02:06]} 12...
Ne5 {[%clk 0:02:14.8]} 13. Bf4 {[%clk 0:01:41.9]} 13... Nxf3+ {[%clk 0:02:00.1]}
14. exf3 {[%clk 0:01:42.8]} 14... Nd7 {[%clk 0:01:56.2]} 15. Qb3 {[%clk
0:01:34.3]} 15... Nc5 {[%clk 0:01:46.3]} 16. Qc2 {[%clk 0:01:34.2]} 16... g5
{[%clk 0:01:40.6]} 17. Bd2 {[%clk 0:01:14.4]} 17... Rc8 {[%clk 0:01:31.7]} 18.
d4 {[%clk 0:01:13]} 18... Nd7 {[%clk 0:01:29.9]} 19. Qd3 {[%clk 0:01:12.8]}
19... Bf6 {[%clk 0:01:20.4]} 20. f4 {[%clk 0:01:10.1]} 20... gxf4 {[%clk
0:01:02.5]} 21. Bxf4 {[%clk 0:01:11]} 21... Qb6 {[%clk 0:01:01.2]} 22. Rab1
{[%clk 0:00:26]} 22... Bxd4 {[%clk 0:00:49.8]} 23. Na4 {[%clk 0:00:22.1]} 23...
Qa7 {[%clk 0:00:48.7]} 24. Rbd1 {[%clk 0:00:19.9]} 24... Bg7 {[%clk 0:00:47.7]}
25. Qf3 {[%clk 0:00:19.4]} 25... Rc4 {[%clk 0:00:43.1]} 26. b3 {[%clk
0:00:19.2]} 26... Rc6 {[%clk 0:00:40.1]} 27. Qg4 {[%clk 0:00:18.5]} 27... Nf6
{[%clk 0:00:39.9]} 28. Qh4 {[%clk 0:00:18.8]} 28... Ne4 {[%clk 0:00:32]} 29. Bh6
{[%clk 0:00:18.4]} 29... f5 {[%clk 0:00:29.3]} 30. Bxg7 {[%clk 0:00:18.4]} 30...
Qxg7 {[%clk 0:00:27.4]} 31. Qf4 {[%clk 0:00:17.5]} 31... Rc2 {[%clk 0:00:24.5]}
32. f3 {[%clk 0:00:14.5]} 32... Qa7+ {[%clk 0:00:20.7]} 33. Kh1 {[%clk
0:00:05.8]} 33... Nf2+ {[%clk 0:00:20.5]} 34. Rxf2 {[%clk 0:00:03.7]} 34... Qxf2
{[%clk 0:00:20.5]} 35. Qg5+ {[%clk 0:00:02.5]} 35... Kh8 {[%clk 0:00:19.3]} 0-1